Workbook

Sheet 2019 REVUE
I3: 279 | J3: 280 | K3: 281 | M3: TOTAL | P3: 279 | Q3: 280 | R3: 281 | T3: TOTAL
G4: REVUE | I4: =SUM(I5:I10) -> 2000 | J4: =SUM(J5:J10) -> 1000 | K4: 1000 | M4: =SUM(I4+J4+K4) -> 4000 | O4: COMMISSION | P4: =SUM(P5:P10) -> 350 | Q4: =SUM(Q5:Q10) -> 150 | R4: 200 | T4: =SUM(P4+Q4+R4) -> 700
G5: Nom client | H5: Nom agence
G6: xxx | H6: ja | I6: 1000 | P6: 150 | Q6: 0 | R6: 0
G7: xxx | I7: 1000 | P7: 200 | Q7: 0 | R7: 0
G8: xxx | H8: ja | J8: 1000 | P8: =IF(E8=1,I8*$C$4,IF(E8=2,I8*$C$5,0)) -> 0 | Q8: 150 | R8: 0
G9: xxx | K9: 1000 | P9: 0 | Q9: 0 | R9: 200
G10: xxx | P10: 0 | Q10: 0 | R10: 0
G13: WEB | I13: =SUM(I14:I19) -> 3000 | J13: =SUM(J14:J19) -> 1500 | K13: 0 | M13: =SUM(I13+J13+K13) -> 4500 | O13: COMMISSION | P13: =SUM(P14:P19) -> 525 | Q13: =SUM(Q14:Q19) -> 300 | R13: 0 | T13: =SUM(P13+Q13+R13) -> 825
G14: Nom client | H14: Nom agence
G15: xxx | I15: 1500 | J15: 0 | K15: 0 | P15: =IF(AND(H15<>"",I15<>""),I15*0.15,I15*0.2) -> 300 | R15: 0
G16: xxx | H16: klip-klap | I16: 1500 | J16: 0 | K16: 0 | P16: =IF(AND(H16<>"",I16<>""),I16*0.15,I16*0.2) -> 225 | R16: 0
G17: xxx | I17: 0 | J17: 1500 | K17: 0 | P17: 0 | Q17: 300 | R17: 0
G18: xxx | I18: 0 | J18: 0 | K18: 0 | P18: 0 | R18: 0
G19: xxx | I19: 0 | J19: 0 | K19: 0 | P19: 0 | R19: 0
G22: SPONSORING LANCEMENT REVUE | I22: =SUM(I23:I28) -> 1000 | J22: =SUM(J23:J28) -> 1020 | K22: 2000 | M22: =SUM(I22+J22+K22) -> 4020 | O22: COMMISSION | P22: =SUM(P23:P28) -> 150 | Q22: =SUM(Q23:Q28) -> 203 | R22: 350 | T22: =SUM(P22+Q22+R22) -> 703
G23: Nom client | H23: Nom agence
G24: xxx | H24: ja | I24: 1000 | J24: 20 | P24: 150 | Q24: 3
G25: xxx | J25: 1000 | Q25: 200
G26: xxx | H26: ja | K26: 1000 | R26: 150
G27: xxx | K27: 1000 | R27: 200
G28: xxx
G31: TOTAL | I31: =SUM(I4+I13+I22) -> 6000 | J31: =SUM(J4+J13+J22) -> 3520 | K31: =SUM(K4+K13+K22) -> 3000 | M31: =SUM(M4+M13+M22) -> 12520

Sheet 2019 EXPOSITIONS
D2: BAUKUNST | E2: URA | F2: xxx | H2: TOTAL
B3: SPONSORING EXPOSITIONS | D3: =SUM(D4:D9) -> 0 | E3: =SUM(E4:E9) -> 0 | F3: 0 | H3: =SUM(D3+E3+F3) -> 0
B4: Nom client | C4: Nom agence
B5: xxx | C5: xxx | D5: 0 | E5: 0 | F5: 0
B6: xxx | C6: xxx | D6: 0 | E6: 0 | F6: 0
B7: xxx | C7: xxx | D7: 0 | E7: 0 | F7: 0
B8: xxx | C8: xxx | D8: 0 | E8: 0 | F8: 0
B9: xxx | C9: xxx | D9: 0 | E9: 0 | F9: 0
B12: TOTAL | D12: =SUM(D3) -> 0 | E12: =SUM(E3) -> 0 | F12: =SUM(F3) -> 0

Sheet Sheet3
